bitfinex/quotes_BTCUSD_20250422
["timestamp","ask_amount","ask_price","bid_price","bid_amount"]
[1745364884293,0.00089209,93687.0,93680.0,0.07472245]
[1745364884509,0.00089209,93687.0,93681.0,0.06404713]
[1745364884725,0.00089209,93687.0,93683.0,0.06404549]
[1745364884945,0.00089209,93687.0,93685.0,0.06404393]
[1745364885175,0.00089209,93687.0,93681.0,0.001]
[1745364885176,0.19398597,93686.0,93681.0,0.001]
[1745364885406,0.10830305,93686.0,93681.0,0.001]
[1745364885620,0.00089209,93687.0,93681.0,0.001]
[1745364885832,0.00289209,93687.0,93682.0,0.542074]
[1745364886058,0.00289209,93687.0,93681.0,0.001]
[1745364886270,0.00089209,93687.0,93681.0,0.001]
[1745364886393,0.00089209,93687.0,93682.0,0.425681]
[1745364886594,0.001,93686.0,93682.0,0.407373]
[1745364887008,0.001,93686.0,93681.0,0.001]
[1745364887618,0.001,93686.0,93682.0,0.00213462]
[1745364887823,0.001,93686.0,93682.0,0.396576]
[1745364888031,0.00089209,93687.0,93682.0,0.211591]
[1745364888242,0.00189209,93687.0,93682.0,0.683405]
[1745364888486,0.00189209,93687.0,93681.0,0.001]
[1745364888729,0.00089209,93687.0,93682.0,0.30756141]
[1745364888939,0.00089209,93687.0,93683.0,0.675531]
[1745364889145,0.00189209,93687.0,93684.0,0.0021343]
[1745364889362,0.00189209,93687.0,93685.0,0.357317]
[1745364889564,0.00089209,93687.0,93685.0,0.357317]
[1745364889778,0.00089209,93687.0,93682.0,0.335913]
[1745364890012,0.00089209,93687.0,93682.0,0.002]
[1745364891083,0.19398597,93686.0,93681.0,0.001]
[1745364891315,0.10830305,93686.0,93685.0,0.001]
[1745364891725,0.10830305,93686.0,93681.0,0.001]
[1745364891935,0.10830305,93686.0,93613.0,0.0478]
[1745364891936,0.01067611,93667.0,93613.0,0.0478]
[1745364892153,0.10830305,93657.0,93614.0,0.264882]
[1745364892355,0.10830305,93657.0,93615.0,0.291603]
[1745364892583,0.01067885,93643.0,93615.0,0.11328]
[1745364892785,0.01067885,93643.0,93614.0,0.02081022]
[1745364892786,0.01067931,93639.0,93614.0,0.02081022]
[1745364892999,0.01067953,93637.0,93614.0,0.02081022]
[1745364893206,0.10830305,93624.0,93599.0,0.11328]
[1745364893421,0.10830305,93624.0,93591.0,0.001]
[1745364893658,0.10830305,93624.0,93611.0,0.00113896]
[1745364894085,0.08568292,93612.0,93611.0,0.00113896]
[1745364894295,0.19398597,93612.0,93611.0,0.00113896]
[1745364894501,0.19198597,93612.0,93611.0,0.00113896]
[1745364894934,0.10830305,93612.0,93611.0,0.00113896]
[1745364895380,0.11630305,93612.0,93611.0,0.00213896]
[1745364895797,0.15500305,93612.0,93608.0,0.02672927]
[1745364896009,0.10830305,93609.0,93608.0,0.02672927]
[1745364896222,0.10730305,93609.0,93608.0,0.02672927]
[1745364897251,0.10730305,93609.0,93581.0,0.11336]
[1745364897440,0.10730305,93609.0,93578.0,0.00013907]
[1745364897441,0.00213676,93608.0,93578.0,0.00013907]
[1745364897629,0.10730305,93607.0,93578.0,0.00013907]
[1745364897781,0.00213676,93606.0,93578.0,0.00013907]
[1745364897989,0.10830305,93604.0,93578.0,0.00013907]
[1745364898219,0.11043981,93603.0,93578.0,0.00013907]
[1745364900556,0.10830305,93587.0,93578.0,0.00013907]
[1745364900782,0.00213676,93586.0,93578.0,0.00013907]
[1745364901003,0.10830305,93585.0,93578.0,0.00013907]
[1745364901279,0.00213676,93584.0,93578.0,0.00013907]
[1745364901497,0.00213676,93584.0,93551.0,0.0018498]
[1745364901498,0.01068741,93568.0,93551.0,0.02016365]
[1745364901779,0.01068707,93571.0,93551.0,0.00231681]
[1745364901780,0.10830305,93552.0,93551.0,0.00231681]
[1745364902211,0.01069004,93545.0,93511.0,0.001]
[1745364902427,0.10830305,93540.0,93539.0,0.00098931]
[1745364902677,0.11043981,93540.0,93539.0,0.00098931]
[1745364903520,0.11043981,93540.0,93511.0,0.001]
[1745364903521,0.01069255,93523.0,93511.0,0.001]
[1745364903771,0.1228439,93515.0,93514.0,0.00098839]
[1745364903974,0.1228439,93515.0,93511.0,0.001]
[1745364903975,0.02523443,93514.0,93511.0,0.001]
[1745364904189,0.02523443,93514.0,93483.0,0.000849]
[1745364904190,0.57026943,93505.0,93483.0,0.000849]
[1745364904402,0.10830305,93496.0,93483.0,0.000849]
[1745364904843,0.10830305,93496.0,93495.0,0.0009884]
[1745364906018,0.01069575,93495.0,93483.0,0.000849]
[1745364906229,0.11899915,93492.0,93483.0,0.000849]
[1745364906453,0.10830305,93484.0,93483.0,0.000849]
[1745364907093,0.11043981,93484.0,93483.0,0.000849]
[1745364907522,0.10943981,93484.0,93483.0,0.000849]
[1745364908338,0.11743981,93484.0,93483.0,0.001849]
[1745364908985,0.16618672,93484.0,93483.0,0.001849]
[1745364909190,0.11743981,93484.0,93483.0,0.001849]
[1745364909395,0.10943981,93484.0,93483.0,0.000849]
[1745364910672,0.12143981,93484.0,93483.0,0.001849]
[1745364911092,0.10943981,93484.0,93483.0,0.000849]
[1745364911323,0.10730305,93484.0,93483.0,0.000849]
[1745364911535,0.12230305,93484.0,93483.0,0.001849]
[1745364911959,0.10730305,93484.0,93483.0,0.000849]
[1745364912374,0.12230305,93484.0,93483.0,0.001849]
[1745364913239,0.24983012,93484.0,93483.0,0.001849]
[1745364913407,0.23546305,93484.0,93483.0,0.001849]
[1745364913621,0.22046305,93484.0,93483.0,0.000849]
[1745364913821,0.23019981,93484.0,93483.0,0.001849]
[1745364914453,0.01069793,93476.0,93451.0,0.001]
[1745364914653,0.01454085,93482.0,93451.0,0.001]
[1745364914654,0.10730305,93452.0,93451.0,0.001]
[1745364915465,0.10530305,93452.0,93451.0,0.001]
[1745364915911,0.105443,93452.0,93451.0,0.001]
[1745364916907,0.00913995,93452.0,93451.0,0.003]
[1745364917331,0.00913995,93452.0,93451.0,0.138927]
[1745364917544,0.00913995,93452.0,93451.0,0.003]
[1745364917753,0.00013995,93452.0,93451.0,0.002]
[1745364918193,0.00013995,93452.0,93451.0,0.565057]
[1745364918194,0.00713995,93452.0,93451.0,0.565057]
[1745364918414,0.00713995,93452.0,93451.0,0.491912]
[1745364918655,0.00213676,93487.0,93451.0,0.491912]
[1745364918656,0.00213676,93504.0,93482.0,0.01069724]
[1745364918872,0.10830305,93504.0,93486.0,0.01069678]
[1745364919138,0.00014005,93505.0,93504.0,0.06416837]
[1745364919366,0.00014005,93505.0,93504.0,0.21777142]
[1745364919575,0.00014005,93505.0,93504.0,0.46785237]
[1745364919790,0.00014005,93505.0,93504.0,0.0453]
[1745364919997,0.00014005,93505.0,93483.0,0.0453]
[1745364919998,0.1084431,93505.0,93483.0,0.0453]
[1745364920243,0.00213676,93522.0,93487.0,0.01069667]
[1745364920439,0.10830305,93521.0,93488.0,0.319993]
[1745364920652,0.08568292,93513.0,93486.0,0.06418011]
[1745364920856,0.11043981,93512.0,93488.0,0.06417935]
[1745364921064,0.11043981,93512.0,93483.0,0.12031993]
[1745364921065,0.11043981,93512.0,93485.0,0.06418119]
[1745364921269,0.11043981,93512.0,93486.0,0.147567]
[1745364921480,0.11043981,93512.0,93488.0,0.002]
[1745364921686,0.11043981,93512.0,93489.0,0.141577]
[1745364922116,0.11043981,93512.0,93490.0,0.00213897]
[1745364922324,0.10830305,93512.0,93496.0,0.06417354]
[1745364922530,0.10830305,93512.0,93488.0,0.002]
[1745364922740,0.10830305,93512.0,93490.0,0.01069633]
[1745364922950,0.10830305,93512.0,93489.0,0.06417867]
[1745364923153,0.10830305,93512.0,93483.0,0.10962264]
[1745364923154,0.00213676,93511.0,93490.0,0.204833]
[1745364923366,0.10830305,93510.0,93486.0,0.001]
[1745364923574,0.00213676,93509.0,93487.0,0.123265]
[1745364923801,0.10830305,93508.0,93483.0,0.04544005]
[1745364924067,0.00213676,93507.0,93489.0,0.001]
[1745364924241,0.10830305,93506.0,93489.0,0.001]
[1745364924447,0.00213676,93505.0,93489.0,0.001]
[1745364924618,0.10830305,93504.0,93483.0,0.04544005]
[1745364924813,0.00213676,93503.0,93483.0,0.04844005]
[1745364925021,0.10830305,93502.0,93483.0,0.04844005]
[1745364925227,0.00213676,93501.0,93483.0,0.04844005]
[1745364925469,0.10830305,93500.0,93483.0,0.04844005]
[1745364925696,0.00213676,93499.0,93483.0,0.00314005]
[1745364925917,0.10830305,93498.0,93483.0,0.00314005]
[1745364926127,0.00213676,93497.0,93483.0,0.00314005]
[1745364926328,0.10830305,93496.0,93483.0,0.00314005]
[1745364926579,0.00213676,93495.0,93483.0,0.00014005]
[1745364926813,0.10830305,93494.0,93483.0,0.00014005]
[1745364927044,0.001,93529.0,93488.0,0.06417903]
[1745364927270,0.10830305,93516.0,93489.0,0.15875898]
[1745364927488,0.00213676,93515.0,93489.0,0.00213898]
[1745364927706,0.002,93495.0,93490.0,0.17216688]
[1745364927937,0.002,93495.0,93492.0,0.07487224]
[1745364928169,0.001,93529.0,93490.0,0.00727388]
[1745364928170,0.001,93529.0,93516.0,0.07485347]
[1745364928381,0.001,93529.0,93526.0,0.07484526]
[1745364928593,0.001,93529.0,93527.0,0.0021381]
[1745364928803,0.001,93529.0,93527.0,0.19358]
[1745364929028,0.001,93529.0,93527.0,0.1473611]
[1745364929247,0.001,93529.0,93527.0,0.0187741]
[1745364929455,0.001,93529.0,93528.0,0.00727388]
[1745364930081,0.003,93529.0,93528.0,0.383059]
[1745364930327,0.003,93529.0,93528.0,0.33998477]
[1745364930554,0.001,93549.0,93543.0,0.01069027]
[1745364930766,0.00114,93549.0,93545.0,0.01069004]
[1745364930973,0.00114,93549.0,93544.0,0.00727388]
[1745364931849,0.00114,93549.0,93541.0,0.11316]
[1745364931850,0.00114,93549.0,93545.0,0.00727388]
[1745364932095,0.00114,93549.0,93546.0,0.00213772]
[1745364932539,0.00114,93549.0,93547.0,0.00727388]
[1745364932754,0.00114,93549.0,93548.0,0.00213772]
[1745364932974,0.00114,93549.0,93548.0,1.90351472]
[1745364933209,0.0018512,93589.0,93568.0,0.06412448]
[1745364933429,0.00146649,93569.0,93568.0,0.07353529]
[1745364933651,0.00146649,93569.0,93568.0,0.67163888]
[1745364933862,0.00146649,93569.0,93568.0,0.00727388]
[1745364934105,0.00146649,93569.0,93568.0,0.43913988]
[1745364934328,0.00146649,93569.0,93568.0,0.59584293]
[1745364935176,0.0018512,93589.0,93587.0,0.06411146]
[1745364935398,0.00199109,93589.0,93588.0,0.26237956]
[1745364935617,0.00199109,93589.0,93588.0,0.260243]
[1745364936036,0.00199109,93589.0,93586.0,0.01068535]
[1745364936255,0.00199109,93589.0,93587.0,0.46552972]
[1745364936465,0.00199109,93589.0,93587.0,0.06411104]
[1745364936675,0.00199109,93589.0,93588.0,1.136185]
[1745364936882,0.0008512,93599.0,93588.0,1.136185]
[1745364936883,0.0008512,93599.0,93598.0,0.07964478]
[1745364937095,0.0008512,93599.0,93598.0,0.17961752]
[1745364937321,0.0008512,93599.0,93598.0,2.56553954]
[1745364937539,0.0008512,93599.0,93598.0,0.27198954]
[1745364937764,0.0008512,93599.0,93598.0,0.00721054]
[1745364938201,0.0008512,93599.0,93597.0,0.115]
[1745364939109,0.0008512,93599.0,93598.0,0.004]
[1745364939362,0.0008512,93599.0,93598.0,1.19435241]
[1745364939581,0.0008512,93599.0,93598.0,1.30051905]
[1745364939796,0.0008512,93599.0,93598.0,1.3110599]
[1745364939930,0.001,93609.0,93603.0,0.08932476]
[1745364940151,0.001,93609.0,93605.0,0.07863999]
[1745364940363,0.0008512,93623.0,93622.0,0.0640875]
[1745364940556,0.0008512,93623.0,93622.0,0.34922683]
[1745364940557,0.00099104,93623.0,93622.0,0.34922683]
[1745364940786,0.00099104,93623.0,93622.0,3.16580467]
[1745364941437,0.00099104,93623.0,93622.0,2.26460067]
[1745364941648,0.00099104,93623.0,93622.0,2.07766927]
[1745364941859,0.00099104,93623.0,93622.0,0.73182532]
[1745364942070,0.00099104,93623.0,93622.0,0.46336227]
[1745364942287,0.10929409,93623.0,93622.0,0.00719227]
[1745364942718,0.10929409,93623.0,93600.0,0.11492]
[1745364942963,0.08568292,93604.0,93591.0,0.35228]
[1745364943176,0.10830305,93603.0,93591.0,0.35228]
[1745364943607,0.08568292,93614.0,93592.0,0.01282141]
[1745364943818,0.10830305,93613.0,93592.0,0.472898]
[1745364944238,0.10830305,93613.0,93592.0,0.200167]
[1745364944408,0.10830305,93613.0,93592.0,0.206569]
[1745364944821,0.00213676,93612.0,93592.0,0.133998]
[1745364945021,0.08568292,93614.0,93593.0,0.00213674]
[1745364945022,0.10810692,93611.0,93593.0,0.00213674]
[1745364945230,0.10810692,93611.0,93594.0,0.722088]
[1745364945424,0.10810692,93611.0,93594.0,0.187176]
[1745364945628,0.10810692,93611.0,93592.0,0.217629]
[1745364945840,0.10810692,93611.0,93592.0,0.192395]
[1745364946034,0.10810692,93611.0,93592.0,0.189512]
[1745364946234,0.00213676,93610.0,93591.0,0.35228]
[1745364946461,0.10830305,93609.0,93592.0,0.576875]
[1745364946855,0.00213676,93608.0,93592.0,0.46219]
[1745364947085,0.10830305,93607.0,93592.0,0.432592]
[1745364947312,0.10830305,93607.0,93593.0,0.432582]
[1745364947525,0.10830305,93607.0,93592.0,0.42602]
[1745364947712,0.10830305,93607.0,93593.0,0.299383]
[1745364947924,0.10830305,93607.0,93592.0,0.165544]
[1745364948163,0.10830305,93607.0,93592.0,0.275914]
[1745364948385,0.10830305,93607.0,93592.0,0.265828]
[1745364949794,0.10830305,93607.0,93592.0,0.133837]
[1745364950017,0.10830305,93607.0,93592.0,0.13389]
[1745364950363,0.10830305,93607.0,93592.0,0.102437]
[1745364950576,0.10830305,93607.0,93592.0,0.102427]
[1745364951211,0.08568292,93614.0,93555.0,0.0497]
[1745364951212,0.08568292,93604.0,93555.0,0.0497]
[1745364951425,0.08568292,93593.0,93553.0,0.06413428]
[1745364951641,0.11043981,93592.0,93556.0,0.11492]
[1745364951874,0.11043981,93592.0,93557.0,0.00723374]
[1745364951875,0.00213676,93592.0,93557.0,0.00723374]
[1745364952295,0.10830305,93591.0,93559.0,0.06413029]
[1745364952494,0.00213676,93590.0,93559.0,0.06413029]
[1745364952698,0.10830305,93589.0,93559.0,0.06413029]
[1745364952902,0.00213676,93588.0,93560.0,0.203242]
[1745364953076,0.10830305,93587.0,93559.0,0.06459678]
[1745364953293,0.00213676,93586.0,93560.0,0.172363]
[1745364953503,0.10830305,93585.0,93560.0,0.156348]
[1745364953707,0.412,93603.0,93577.0,0.01068638]
[1745364953935,0.412,93603.0,93580.0,0.57126943]
[1745364953936,0.11043981,93602.0,93580.0,0.57126943]
[1745364954078,0.11043981,93602.0,93573.0,0.11492]
[1745364954079,0.10830305,93597.0,93573.0,0.11492]
[1745364954283,0.00213676,93596.0,93573.0,0.11492]
[1745364954532,0.10830305,93593.0,93563.0,0.11492]
[1745364954743,0.11043981,93592.0,93564.0,0.00724918]
[1745364955124,0.10830305,93581.0,93564.0,0.00724918]
[1745364955323,0.00213676,93580.0,93564.0,0.00724918]
[1745364955526,0.10830305,93579.0,93564.0,0.00724918]
[1745364955678,0.10830305,93579.0,93559.0,0.00046649]
[1745364955679,0.00213676,93578.0,93565.0,0.00724918]
[1745364955900,0.10830305,93577.0,93565.0,0.00724918]
[1745364956102,0.00213676,93576.0,93565.0,0.00724918]
[1745364956281,0.00213676,93576.0,93559.0,0.00046649]
[1745364956282,0.10830305,93575.0,93559.0,0.00046649]
[1745364956480,0.00213676,93574.0,93559.0,0.00046649]
[1745364956805,0.10830305,93573.0,93559.0,0.00046649]
[1745364957019,0.10830305,93573.0,93560.0,0.64267031]
[1745364957221,0.10830305,93573.0,93562.0,0.06412841]
[1745364957427,0.00213676,93589.0,93570.0,0.01068718]
[1745364957622,0.10830305,93588.0,93571.0,0.24755843]
[1745364957945,0.10130305,93588.0,93572.0,0.159964]
[1745364958686,0.00213676,93587.0,93573.0,0.00727091]
[1745364958907,0.10830305,93586.0,93573.0,0.00727091]
[1745364959081,0.00213676,93585.0,93573.0,0.00727091]
[1745364959291,0.412,93591.0,93567.0,0.07139562]
[1745364959292,0.10812493,93584.0,93567.0,0.07139562]
[1745364959504,0.10812493,93584.0,93568.0,0.00213722]
[1745364959722,0.10812493,93584.0,93569.0,0.102032]
[1745364960228,0.10812493,93584.0,93570.0,0.00727091]
[1745364960427,0.08568292,93582.0,93570.0,0.00727091]
[1745364960631,0.11043981,93581.0,93570.0,0.00727091]
[1745364960837,0.11043981,93581.0,93560.0,0.00727091]
[1745364961633,0.10830305,93581.0,93564.0,0.01068787]
[1745364961844,0.00213676,93601.0,93581.0,0.01068592]
[1745364962046,0.10830305,93600.0,93565.0,0.00727091]
[1745364962250,0.10830305,93584.0,93565.0,0.00727091]
[1745364962453,0.00213676,93583.0,93565.0,0.00727091]
[1745364962667,0.00213676,93583.0,93559.0,0.00046649]
[1745364962668,0.10830305,93582.0,93560.0,0.00727091]
[1745364962870,0.00213676,93581.0,93560.0,0.00727091]
[1745364963071,0.10830305,93580.0,93560.0,0.00727091]
[1745364963273,0.00213676,93579.0,93560.0,0.01527091]
[1745364963478,0.10830305,93578.0,93561.0,0.00727091]
[1745364963679,0.00213676,93577.0,93561.0,0.00727091]
[1745364963805,0.10830305,93576.0,93561.0,0.00727091]
[1745364964008,0.00213676,93575.0,93561.0,0.00727091]
[1745364964204,0.10830305,93574.0,93561.0,0.00727091]
[1745364964437,0.10830305,93574.0,93560.0,0.00727091]
[1745364964649,0.10830305,93574.0,93561.0,0.01]
[1745364965009,0.10830305,93574.0,93560.0,0.00727091]
[1745364965010,0.00213676,93573.0,93560.0,0.00727091]
[1745364965143,0.10830305,93572.0,93560.0,0.00727091]
[1745364965350,0.00213676,93571.0,93560.0,0.00727091]
[1745364965573,0.10130305,93570.0,93560.0,0.00727091]
[1745364965785,0.00213676,93569.0,93560.0,0.00727091]
[1745364966001,0.10830305,93568.0,93560.0,0.00727091]
[1745364966844,0.10830305,93568.0,93561.0,0.007]
[1745364967305,0.00213676,93567.0,93560.0,0.00727091]
[1745364967512,0.10830305,93566.0,93560.0,0.01427091]
[1745364967731,0.10830305,93566.0,93560.0,0.00727091]
[1745364967946,0.00213676,93588.0,93566.0,0.01068764]
[1745364968159,0.10830305,93587.0,93570.0,0.57126943]
[1745364968406,0.10830305,93588.0,93574.0,0.01068672]
[1745364968663,0.10830305,93588.0,93573.0,0.01068684]
[1745364968835,0.10830305,93588.0,93574.0,0.01068672]
[1745364969033,0.10830305,93588.0,93575.0,0.00727091]
[1745364970050,0.10830305,93588.0,93574.0,0.00727091]
[1745364970498,0.11043981,93587.0,93574.0,0.00727091]
[1745364970728,0.11043981,93587.0,93566.0,0.01327091]
[1745364970729,0.08568292,93586.0,93566.0,0.01327091]
[1745364970922,0.11043981,93585.0,93566.0,0.01327091]
[1745364971133,0.11043981,93585.0,93566.0,0.00727091]
[1745364971338,0.11043981,93585.0,93574.0,0.004]
[1745364971503,0.11043981,93585.0,93567.0,0.00727091]
[1745364972051,0.11043981,93585.0,93559.0,0.00260391]
[1745364972052,0.11043981,93585.0,93560.0,0.00727091]
[1745364972407,0.10830305,93579.0,93560.0,0.00727091]
[1745364972640,0.41413676,93578.0,93560.0,0.00727091]
[1745364972846,0.41413676,93578.0,93559.0,0.00046649]
[1745364972847,0.10830305,93563.0,93561.0,0.00727091]
[1745364973063,0.10830305,93562.0,93561.0,0.00727091]
[1745364973283,0.10443981,93562.0,93561.0,0.00727091]
[1745364973685,0.01454085,93561.0,93559.0,0.00046649]
[1745364973953,0.01068878,93556.0,93551.0,0.001]
[1745364974177,0.10830305,93552.0,93551.0,0.001]
[1745364974386,0.11043981,93552.0,93551.0,0.001]
[1745364975876,0.10830305,93552.0,93551.0,0.001]
[1745364976523,0.11230305,93552.0,93551.0,0.001]
[1745364978171,0.004,93552.0,93551.0,0.001]
[1745364979214,4.659e-05,93561.0,93551.0,0.001]
[1745364979401,0.10830305,93560.0,93551.0,0.001]
[1745364979572,0.004,93552.0,93551.0,0.001]
[1745364979979,0.11330305,93552.0,93551.0,0.001]
[1745364980343,0.11043981,93552.0,93551.0,0.001]
[1745364981168,0.11243981,93552.0,93551.0,0.001]
[1745364981608,0.15300152,93552.0,93551.0,0.001]
[1745364981823,0.12698066,93552.0,93551.0,0.001]
[1745364982027,0.23901842,93551.0,93522.0,0.01769923]
[1745364982402,0.10830305,93533.0,93522.0,0.01769923]
[1745364982601,0.00213676,93532.0,93522.0,0.01769923]
[1745364982828,0.11043981,93532.0,93522.0,0.01769923]
[1745364983043,0.10830305,93532.0,93522.0,0.01769923]
[1745364983254,0.00213676,93549.0,93523.0,0.01069255]
[1745364983513,0.10830305,93548.0,93530.0,0.01069175]
[1745364983722,0.00213676,93547.0,93532.0,0.01069152]
[1745364983932,0.001,93532.0,93525.0,0.07484622]
[1745364984144,0.10830305,93546.0,93526.0,0.00213819]
[1745364984345,0.00213676,93545.0,93525.0,0.07484622]
[1745364984559,0.10830305,93544.0,93532.0,0.107524]
[1745364984959,0.10830305,93544.0,93527.0,0.00213819]
[1745364985516,0.00213676,93543.0,93526.0,0.00213819]
[1745364985726,0.10830305,93542.0,93526.0,0.00213819]
[1745364985912,0.10830305,93542.0,93527.0,0.06415216]
[1745364986172,0.10830305,93542.0,93532.0,0.00731159]
[1745364986616,9.459e-05,93548.0,93538.0,0.01069084]
[1745364986832,9.459e-05,93548.0,93539.0,0.74936381]
[1745364987053,9.459e-05,93548.0,93542.0,0.01069038]
[1745364987300,9.459e-05,93548.0,93543.0,0.00944942]
[1745364987526,9.459e-05,93548.0,93543.0,0.00731159]
[1745364987967,9.459e-05,93548.0,93544.0,0.00731159]
[1745364988382,0.40723135,93573.0,93544.0,0.00731159]
[1745364988610,0.10830305,93571.0,93545.0,0.00731159]
[1745364989457,0.10830305,93571.0,93546.0,0.00731159]
[1745364990447,0.10830305,93571.0,93547.0,0.00731159]
[1745364991315,0.08568292,93554.0,93547.0,0.00731159]
[1745364991520,0.40723135,93553.0,93548.0,0.00731159]
[1745364991928,0.40723135,93553.0,93532.0,0.00731159]
[1745364992731,0.40723135,93553.0,93547.0,0.001]
[1745364993153,0.40723135,93553.0,93532.0,0.00731159]
[1745364993296,0.40923135,93553.0,93532.0,0.00731159]
[1745364993518,0.10830305,93544.0,93532.0,0.00731159]
[1745364993724,0.00213844,93543.0,93512.0,0.06080751]
[1745364993936,0.10830305,93542.0,93513.0,0.57240415]
[1745364994129,0.00213844,93541.0,93514.0,0.261841]
[1745364994330,0.10830305,93540.0,93524.0,0.01069244]
[1745364994757,0.00213844,93552.0,93530.0,0.01069175]
[1745364994994,0.10830305,93551.0,93531.0,0.73560365]
[1745364995197,0.10830305,93551.0,93532.0,0.35688101]
[1745364995534,0.002,93553.0,93535.0,0.01069118]
[1745364995644,0.10830305,93552.0,93536.0,0.436244]
[1745364995850,0.002,93553.0,93542.0,0.07483249]
[1745364996054,0.11030305,93553.0,93543.0,0.00213781]
[1745364996313,0.10830305,93553.0,93543.0,0.00213781]
[1745364996537,0.001,93589.0,93543.0,0.00213781]
[1745364996538,0.001,93589.0,93569.0,0.06412313]
[1745364996757,0.00085,93598.0,93586.0,0.01068535]
[1745364996918,0.00085,93598.0,93577.0,0.01068638]
[1745364997119,0.10830305,93596.0,93572.0,0.01068695]
[1745364997526,0.00213844,93595.0,93573.0,0.129759]
[1745364997738,0.10830305,93594.0,93573.0,0.01068684]
[1745364997934,0.00213844,93593.0,93574.0,0.256851]
[1745364998138,0.10830305,93592.0,93574.0,0.256851]
[1745364998756,0.10830305,93592.0,93574.0,0.15027]
[1745364999286,0.00046663,93595.0,93579.0,0.01068615]
[1745364999499,0.10830305,93594.0,93580.0,0.160173]
[1745364999707,0.00213844,93593.0,93572.0,0.01068695]
[1745364999904,0.10830305,93592.0,93571.0,0.275202]
[1745365000138,0.00213844,93591.0,93572.0,0.143938]
[1745365000384,0.00213844,93591.0,93569.0,0.12431099]
[1745365000385,0.10830305,93590.0,93569.0,0.0495]
[1745365000597,0.19398597,93588.0,93538.0,0.01069084]
[1745365000805,0.10830305,93577.0,93544.0,0.157599]
[1745365001013,0.10830305,93574.0,93543.0,0.11344]
[1745365001225,0.00213844,93573.0,93543.0,0.11344]
[1745365001459,0.40723135,93587.0,93561.0,0.01068821]
[1745365001460,0.10830305,93572.0,93561.0,0.01068821]
[1745365001673,0.00213844,93571.0,93543.0,0.11344]
[1745365001885,0.10830305,93570.0,93544.0,0.220755]
[1745365002090,0.00213844,93569.0,93545.0,0.12929004]
[1745365002270,0.10830305,93568.0,93546.0,0.01068992]
[1745365002410,0.00213844,93567.0,93546.0,0.27527387]
[1745365002631,0.00213844,93567.0,93547.0,0.231347]
[1745365002632,0.10830305,93566.0,93547.0,0.231347]
[1745365002840,0.00213844,93565.0,93541.0,0.11244]
[1745365003065,0.10830305,93564.0,93532.0,0.0468]
[1745365003265,0.00213844,93563.0,93533.0,0.313549]
[1745365003526,0.10830305,93562.0,93540.0,0.06414368]
[1745365003707,0.10830305,93562.0,93551.0,0.01068935]
[1745365003941,0.00213844,93583.0,93562.0,0.01068809]
[1745365004145,0.10830305,93582.0,93571.0,0.01068707]
[1745365004357,0.00213844,93581.0,93558.0,0.01068855]
[1745365004542,0.10830305,93580.0,93560.0,0.137763]
[1745365004767,0.00213844,93579.0,93556.0,0.01068878]
[1745365004996,0.10830305,93578.0,93560.0,0.191703]
[1745365005424,0.10876939,93578.0,93561.0,0.01282554]
[1745365005632,0.00046634,93578.0,93563.0,0.01068798]
[1745365005839,0.00046634,93578.0,93562.0,0.01068809]
[1745365006063,0.00046634,93578.0,93563.0,0.390221]
[1745365006718,0.00046634,93578.0,93563.0,0.373482]
[1745365006929,0.00046634,93578.0,93564.0,0.11244]
[1745365007349,0.00046634,93578.0,93565.0,0.00213721]
[1745365007804,0.00046634,93578.0,93537.0,0.4135]
[1745365008016,0.10830305,93577.0,93558.0,0.11244]
[1745365008222,0.00213844,93576.0,93559.0,0.00730261]
[1745365008437,0.10830305,93575.0,93559.0,0.00730261]
[1745365008640,0.00213844,93574.0,93559.0,0.00730261]
[1745365008861,0.00213844,93574.0,93543.0,0.11244]
[1745365008862,0.10830305,93573.0,93543.0,0.11244]
[1745365009015,0.00213844,93572.0,93544.0,0.1065]
[1745365009249,0.10830305,93567.0,93543.0,0.11244]
[1745365009425,0.00213844,93566.0,93536.0,0.12313107]
[1745365009637,0.10830305,93565.0,93542.0,0.07483237]
[1745365009815,0.00213844,93564.0,93543.0,0.607961]
[1745365010020,0.10830305,93563.0,93543.0,0.54956]
[1745365010249,0.00213844,93562.0,93543.0,0.180463]
[1745365010456,0.10830305,93561.0,93540.0,0.128701]
[1745365010654,0.00213844,93560.0,93537.0,0.10787]
[1745365010851,0.10830305,93559.0,93537.0,0.10787]
[1745365011138,0.00213844,93558.0,93543.0,0.001]
[1745365011346,0.10830305,93557.0,93543.0,0.001]
[1745365011527,0.00213844,93556.0,93538.0,0.00730757]
[1745365011752,0.10830305,93555.0,93539.0,0.21535]
[1745365012038,0.10830305,93555.0,93539.0,0.135997]
[1745365012184,0.10830305,93555.0,93537.0,0.002]
[1745365012389,0.00213844,93554.0,93537.0,0.002]
[1745365012590,0.10830305,93553.0,93538.0,0.101566]
[1745365012848,0.09830305,93553.0,93538.0,0.101566]
[1745365013407,0.00213844,93552.0,93536.0,0.11244]
[1745365013751,0.10830305,93551.0,93543.0,0.001]
[1745365014093,0.10130305,93551.0,93536.0,0.12313107]
[1745365014299,0.10130305,93551.0,93538.0,0.002]
[1745365014501,0.10130305,93551.0,93539.0,0.201161]
[1745365014857,0.10130305,93551.0,93539.0,0.122061]
[1745365015014,0.10130305,93551.0,93536.0,0.11244]
[1745365015753,0.10130305,93551.0,93531.0,0.35328]
[1745365015754,0.00213844,93550.0,93531.0,0.001]
[1745365015979,0.10830305,93549.0,93531.0,0.001]
[1745365016200,0.00213844,93548.0,93531.0,0.001]
[1745365016411,0.10830305,93547.0,93531.0,0.001]
[1745365016654,0.10830305,93545.0,93531.0,0.001]
[1745365016870,0.00213844,93544.0,93531.0,0.001]
[1745365017080,0.10830305,93543.0,93531.0,0.001]
[1745365017290,0.00213844,93542.0,93531.0,0.00113989]
[1745365017476,0.10830305,93541.0,93531.0,0.00113989]
[1745365017725,0.00213844,93540.0,93531.0,0.00113989]
[1745365017946,0.002,93545.0,93532.0,0.193181]
[1745365018151,0.10830305,93544.0,93532.0,0.131434]
[1745365018359,0.002,93542.0,93532.0,0.122761]
[1745365019172,0.10830305,93541.0,93531.0,0.00113989]
[1745365020271,0.00413844,93540.0,93531.0,0.00113989]
[1745365020497,0.11044149,93540.0,93531.0,0.00113989]
[1745365020712,0.10830305,93539.0,93531.0,0.00113989]
[1745365020900,0.00213844,93538.0,93531.0,0.00113989]
[1745365021046,0.10830305,93537.0,93531.0,0.00113989]
[1745365021711,0.00213844,93536.0,93531.0,0.00113989]
[1745365021911,0.10830305,93535.0,93531.0,0.00113989]
[1745365022109,0.00213844,93534.0,93531.0,0.00113989]
[1745365022319,0.10830305,93533.0,93531.0,0.00113989]